Cogmind - Beta 9.3 @@@ ROGUE MODE // 2019.12.24 @ 17:47:01 Player: Valguris Result: Destroyed by Executioner with Helical Railgun Performance ------------- Evolutions (9) 4500 Regions Visited (35) 7000 Robots Destroyed (216) 1080 Value Destroyed (6212) 6212 Prototype IDs (117) 2340 Alien Tech Used (1) 200 Bonus (12853) 12853 TOTAL SCORE: 34185 Bonus ------- High Alert Combat Kills 666 Follower Combat Kills 3964 Network Hubs Disabled 600 Aligned with FarCom 300 Met Imprinter 300 Destroyed Z-Imprinter 1000 Met Zhirov 300 Met Warlord at Base 500 MAIN.C Attacked Warlord 500 Warlord Defense Kill 602 Built Enhanced Grunts 300 A7 Reached Mainframe 300 Met R17 at Cetus 500 Met R17 at Research 2000 Met Warlord at Research 2000 Friendly Fire -979 Cogmind --------- Core Integrity 0/1600 Matter 242/300 Energy 98/100 System Corruption 10% Temperature Cool (0) Movement Core (50) Location -1/Command Parts ------- > --- POWER (1) -------- (None) > --- PROPULSION (2) --- (None) > --- UTILITY (19) ----- Advanced Melee Analysis Suite Advanced Melee Analysis Suite Advanced Target Analyzer Improved Hacking Suite > --- WEAPON (3) ------- (None) > --- INVENTORY (4) ---- Medium Storage Unit Experimental Force Field Transdimensional Reconstructor Plasma Lance Peak State ------------ > --- POWER ------------ Mini Fusion Reactor > --- PROPULSION ------- (None) > --- UTILITY ---------- Improved Fusion Compressor Medium Storage Unit Large Storage Unit Advanced Energy Well Gravity Neutralizing Apparatus Inertial Stasis Machine Inertial Stasis Machine Inertial Stasis Machine Experimental Sensor Array Experimental Signal Interpreter Advanced Melee Analysis Suite Advanced Reaction Control System Advanced Phase Shifter Cloak of Protection Improved Utility Shielding Improved Hacking Suite Advanced Hacking Suite Advanced Hacking Suite Advanced Hacking Suite > --- WEAPON ----------- Mini Smartbomb Launcher Plasma Lance Plasma Lance > --- INVENTORY -------- Improved Quantum Reactor Experimental Power Amplifier Experimental Terrain Scanner Experimental Armor Integrity Analyzer Femtoactuators Powered Armor Experimental Force Field Transdimensional Reconstructor Compact HERF Cannon Compact HERF Cannon Enhanced Nova Cannon Plasma Lance [Rating: 158] Favorites ----------- Power Mini Fusion Reactor Engine Light Angular Momentum Engine Power Core Light Nuclear Core Reactor Mini Fusion Reactor Propulsion None Utility Improved Hacking Suite Device Gravity Neutralizing Apparatus Storage Large Storage Unit Processor Experimental Signal Interpreter Hackware Improved Hacking Suite Protection Improved Utility Shielding Weapon Greatsword Energy Gun Zionite Laser-S Energy Cannon Proton Cannon Ballistic Gun Light Assault Rifle Launcher Mini Smartbomb Launcher Special Weapon Remote Datajack Impact Weapon Heavy Mace Slashing Weapon Greatsword Piercing Weapon Plasma Lance Special Melee Weapon Improved Datajack Build | -11 -10 -10 -9 -9 -9 -8 -8 -8 -7 -7 -7 -7 -7 -6 -6 -6 -6 -6 -6 -5 -5 -5 -5 -5 -5 -4 -4 -4 -4 -4 -3 -3 -2 -1 -1 ------- Run | Scr Mat Min Mat Min Exi Min Mat Sto Fac Low Low Zio Dee Pro Fac Ext Cet Arc Hub Fac Was Fac Upp Upp Zhi Pro Fac Upp Upp War Pro Res Res Acc Com Slots Evolved 18 | . . . 2 . . . 2 . 2 . . . . . 2 . . . . 2 . . . . . . 2 . . . . 2 2 2 . Power . | . . . . . . . . . . . . . . . . . . . . . . . . . . . . . . . . . . . . Propulsion . | . . . . . . . . . . . . . . . . . . . . . . . . . . . . . . . . . . . . Utility 17 | . . . 2 . . . 2 . 2 . . . . . 2 . . . . 2 . . . . . . 2 . . . . 2 2 1 . Weapon 1 | . . . . . . . . . . . . . . . . . . . . . . . . . . . . . . . . . . 1 . Parts Attached 259 | 2 4 2 2 . 1 5 7 24 10 . 5 2 12 1 13 35 2 . 10 8 5 15 2 . 8 . 15 2 . 14 5 6 23 3 16 Power 18 | . 1 1 . . . . 1 4 . . . . 2 . 1 2 . . 1 . . 1 . . 2 . . . . . . . . . 2 Engine 5 | . 1 1 . . . . 1 1 . . . . . . . . . . 1 . . . . . . . . . . . . . . . . Core 2 | . . . . . . . . 2 . . . . . . . . . . . . . . . . . . . . . . . . . . . Reactor 11 | . . . . . . . . 1 . . . . 2 . 1 2 . . . . . 1 . . 2 . . . . . . . . . 2 Propulsion . | . . . . . . . . . . . . . . . . . . . . . . . . . . . . . . . . . . . . Treads . | . . . . . . . . . . . . . . . . . . . . . . . . . . . . . . . . . . . . Leg . | . . . . . . . . . . . . . . . . . . . . . . . . . . . . . . . . . . . . Wheel . | . . . . . . . . . . . . . . . . . . . . . . . . . . . . . . . . . . . . Hover . | . . . . . . . . . . . . . . . . . . . . . . . . . . . . . . . . . . . . Flight . | . . . . . . . . . . . . . . . . . . . . . . . . . . . . . . . . . . . . Utility 136 | . 3 . 2 . . 3 3 6 7 . 5 . 5 . 10 11 1 . 6 3 4 10 . . 6 . 14 . . 7 . 6 15 2 7 Device 56 | . 2 . . . . 1 1 2 5 . 3 . . . 2 4 . . 3 . 2 5 . . 3 . 9 . . 3 . 3 5 1 2 Storage 10 | . . . . . . . . . . . . . 1 . 1 1 . . . 1 1 2 . . . . . . . 1 . 1 . 1 . Processor 19 | . 1 . 1 . . 2 1 1 1 . . . . . 3 1 . . . . . . . . . . 1 . . . . . 3 . 4 Hackware 11 | . . . . . . . . 1 . . . . 1 . . . . . 1 2 . 2 . . 1 . . . . . . . 3 . . Protection 40 | . . . 1 . . . 1 2 1 . 2 . 3 . 4 5 1 . 2 . 1 1 . . 2 . 4 . . 3 . 2 4 . 1 Artifact . | . . . . . . . . . . . . . . . . . . . . . . . . . . . . . . . . . . . . Weapon 105 | 2 . 1 . . 1 2 3 14 3 . . 2 5 1 2 22 1 . 3 5 1 4 2 . . . 1 2 . 7 5 . 8 1 7 Energy Gun 3 | . . . . . . . . . . . . . 2 . . . . . . . . . . . . . . . . . . . 1 . . Energy Cannon 18 | . . . . . . . . . . . . . . . . 5 1 . 1 5 . . . . . . . . . 2 . . 1 . 3 Ballistic Gun 15 | 2 . 1 . . 1 2 2 6 1 . . . . . . . . . . . . . . . . . . . . . . . . . . Ballistic Cannon . | . . . . . . . . . . . . . . . . . . . . . . . . . . . . . . . . . . . . Launcher 17 | . . . . . . . . . . . . 1 1 . 1 2 . . 1 . . 1 1 . . . . 1 . 2 2 . 2 . 2 Special Weapon 2 | . . . . . . . . . . . . . . . . 2 . . . . . . . . . . . . . . . . . . . Impact Weapon 9 | . . . . . . . 1 7 1 . . . . . . . . . . . . . . . . . . . . . . . . . . Slashing Weapon 27 | . . . . . . . . . 1 . . 1 2 1 1 8 . . . . 1 3 1 . . . 1 1 . 2 3 . 1 . . Piercing Weapon 7 | . . . . . . . . . . . . . . . . . . . . . . . . . . . . . . 1 . . 3 1 2 Special Melee Weapon 7 | . . . . . . . . 1 . . . . . . . 5 . . 1 . . . . . . . . . . . . . . . . Unidentified Prototypes 31 | . . . . . . . . . . . 1 1 5 . 4 . 1 . . . 1 2 . . 5 . 1 . . 6 . . 4 . . Parts Lost 40 | . . . 1 . . 1 . 4 . . . . 1 . 1 5 . . 4 . . . . . . . . . . . . . . . 23 Power 3 | . . . . . . . . 1 . . . . . . . . . . . . . . . . . . . . . . . . . . 2 Propulsion . | . . . . . . . . . . . . . . . . . . . . . . . . . . . . . . . . . . . . Utility 27 | . . . 1 . . . . 1 . . . . 1 . 1 4 . . 2 . . . . . . . . . . . . . . . 17 Weapon 10 | . . . . . . 1 . 2 . . . . . . . 1 . . 2 . . . . . . . . . . . . . . . 4 Highest Loss Streak 18 | . . . 1 . . 1 . 4 . . . . 1 . 1 4 . . 2 . . . . . . . . . . . . . . . 18 Average Slot Usage (%) 78 | . 42 71 51 44 38 54 69 78 80 76 76 76 75 76 78 79 86 86 82 79 76 81 81 82 81 82 77 84 84 83 83 82 89 85 84 Reactor 4 | . . . . . . . . 2 7 7 7 7 6 7 5 5 6 6 5 . . 2 5 5 5 5 5 5 5 5 5 4 4 4 3 Device 24 | . 5 28 18 11 5 8 13 20 28 30 30 30 24 23 24 20 26 26 25 17 17 17 23 23 22 23 25 31 31 31 31 32 33 33 26 Storage 6 | . . . . . . . . . . . . . 5 7 11 12 13 13 9 8 8 8 5 5 5 5 5 5 5 5 5 6 8 9 9 Processor 9 | . 3 . 3 11 11 24 30 18 14 15 15 15 13 7 13 13 13 13 13 11 11 9 5 5 5 5 5 5 5 5 5 4 4 8 15 Hackware 12 | . . . . . . . . 5 7 7 7 7 7 7 6 4 . . 5 16 17 19 23 23 23 23 21 21 21 21 21 19 20 16 15 Protection 8 | . . . . . . . 3 8 7 7 7 7 8 15 7 9 13 13 10 11 8 10 11 11 11 11 9 10 10 9 10 8 7 6 3 Ballistic Gun 2 | . 28 28 22 22 22 21 17 12 5 . . . . . . . . . . . . . . . . . . . . . . . . . . Slashing Weapon 3 | . . . . . . . . . 1 7 7 7 6 7 6 1 . . . . 5 4 4 5 5 5 4 4 5 3 4 4 . . . Naked Turns . | . . . . . . . . . . . . . . . . . . . . . . . . . . . . . . . . . . . . Heaviest Build 78 | 3 7 7 6 3 3 3 9 15 20 20 21 21 21 18 37 47 49 49 56 38 42 42 38 38 38 38 46 46 46 46 46 57 63 65 78 Greatest Support 63 | 3 9 9 9 3 3 3 9 15 27 27 27 27 27 21 33 33 33 33 33 21 21 39 39 39 39 39 47 47 47 47 47 63 63 63 63 Greatest Overweight (x) 2 | . . . . . . . . 1 . . . . . . 1 2 1 1 2 1 1 1 2 1 . . 1 . . . . . . 1 1 Average Overweight (x) . | . . . . . . . . . . . . . . . . . 1 1 1 1 . . . . . . . . . . . . . . . Largest Inventory Capacity 14 | 4 4 4 4 4 4 4 4 4 4 4 4 4 4 4 10 10 10 10 10 10 10 10 10 10 10 10 10 10 10 10 10 14 14 14 14 Average Capacity 8 | 4 4 4 4 4 4 4 4 4 4 4 4 4 4 4 8 10 10 10 10 10 7 10 10 10 10 10 10 10 10 10 10 11 14 14 11 Most Carried 14 | 3 4 4 4 4 4 4 4 4 4 4 4 4 4 4 10 10 10 10 10 10 10 10 10 10 10 10 10 10 10 10 10 13 14 14 14 Average Carried 8 | 1 3 3 4 4 3 3 3 3 3 4 4 3 3 4 7 9 10 10 9 8 6 9 9 9 9 10 9 9 10 9 9 11 13 13 10 Final Capacity 14 | 4 4 4 4 4 4 4 4 4 4 4 4 4 4 4 10 10 10 10 10 10 10 10 10 10 10 10 10 10 10 10 10 14 14 14 4 Final Carried 13 | 3 3 4 4 4 4 3 4 4 4 4 4 4 4 4 9 10 10 10 10 9 10 10 10 10 10 10 10 10 10 10 10 13 13 12 4 Class Distribution -------------------- 25% | Hacker-Mutant 17% | Scout 12% | Hacker-Scout 9% | Mutant 8% | Commander-Assassin 8% | Hacker-Assassin 6% | Wizard-Scout 3% | Scavenger-Scout 3% | Commander-Mutant Dominant Class ---------------- Mutant | -10/Materials Mutant | -10/Mines Mutant | -9/Materials Mutant | -9/Mines Mutant | -9/Exiles Scout | -8/Mines Scavenger-Scout | -8/Materials Commander-Mutant | -8/Storage Scout | -7/Factory Scout | -7/Lower Caves Scout | -7/Lower Caves Scout | -7/Zion Scout | -7/Deep Caves Mutant | -6/Proximity Caves Scavenger-Scout | -6/Factory Commander-Assassin | -6/Extension Commander-Assassin | -6/Cetus Commander-Assassin | -6/Archives Scavenger-Mutant | -6/Hub_04(d) Hacker-Assassin | -5/Factory Hacker-Assassin | -5/Waste Hacker-Assassin | -5/Factory Hacker-Mutant | -5/Upper Caves Hacker-Mutant | -5/Upper Caves Hacker-Mutant | -5/Zhirov Hacker-Mutant | -4/Proximity Caves Hacker-Scout | -4/Factory Hacker-Mutant | -4/Upper Caves Hacker-Mutant | -4/Upper Caves Hacker-Mutant | -4/Warlord Hacker-Mutant | -3/Proximity Caves Hacker-Scout | -3/Research Wizard-Scout | -2/Research Hacker-Scout | -1/Access Hacker-Mutant | -1/Command Resources | -11 -10 -10 -9 -9 -9 -8 -8 -8 -7 -7 -7 -7 -7 -6 -6 -6 -6 -6 -6 -5 -5 -5 -5 -5 -5 -4 -4 -4 -4 -4 -3 -3 -2 -1 -1 ----------- Run | Scr Mat Min Mat Min Exi Min Mat Sto Fac Low Low Zio Dee Pro Fac Ext Cet Arc Hub Fac Was Fac Upp Upp Zhi Pro Fac Upp Upp War Pro Res Res Acc Com Matter Collected 7222 | 220 84 48 . . 9 101 108 225 80 20 50 20 86 170 146 577 20 . 99 39 91 150 60 . 90 . 131 60 . 175 425 560 2095 329 954 Remotely . | . . . . . . . . . . . . . . . . . . . . . . . . . . . . . . . . . . . . Salvage Created 9812 | . 49 74 . . . 99 123 158 135 344 353 . 81 115 732 2007 238 . 1367 39 . 454 12 237 229 . 272 59 . 129 184 157 919 320 926 Parts 393 | . 2 10 . . . 15 10 6 4 14 1 . 5 4 41 45 5 . 54 3 . 16 . . . . 17 8 . 3 12 6 24 28 60 Haulers Intercepted 31 | . 1 . . . . . 2 . 1 . . . . . 4 12 . . 1 . . 2 . . . . . . . . . 1 6 1 . Recyclers Shooed 3 | . . . . . . . . 1 . . . . . . . . . . . . . . . . . . . . . . . . 1 1 . Parts Field Recycled . | . . . . . . . . . . . . . . . . . . . . . . . . . . . . . . . . . . . . Retrieved Matter . | . . . . . . . . . . . . . . . . . . . . . . . . . . . . . . . . . . . . Parts Self-Destructed 56 | . . . . . . . . . . 12 4 . . 7 . . . . . . . . 2 . . . . 8 . 11 12 . . . . Prevented 5 | . . . . . . . . . . . . . . . . . . . . . . . . 2 . . . . 2 1 . . . . . Kills | -11 -10 -10 -9 -9 -9 -8 -8 -8 -7 -7 -7 -7 -7 -6 -6 -6 -6 -6 -6 -5 -5 -5 -5 -5 -5 -4 -4 -4 -4 -4 -3 -3 -2 -1 -1 ------- Run | Scr Mat Min Mat Min Exi Min Mat Sto Fac Low Low Zio Dee Pro Fac Ext Cet Arc Hub Fac Was Fac Upp Upp Zhi Pro Fac Upp Upp War Pro Res Res Acc Com Combat Hostiles Destroyed 92 | . . 3 . . . 4 . 2 . 5 . . 7 2 4 12 3 . 6 . . . 2 . . . . 5 . 5 9 . 5 1 17 Melee 21 | . . . . . . . . 2 . 5 . . 1 2 4 2 . . . . . . . . . . . . . . 1 . . 1 3 Guns 7 | . . 3 . . . 4 . . . . . . . . . . . . . . . . . . . . . . . . . . . . . Cannons 4 | . . . . . . . . . . . . . . . . 1 2 . 1 . . . . . . . . . . . . . . . . AOE 52 | . . . . . . . . . . . . . 6 . . 7 . . 2 . . . 2 . . . . 5 . 5 8 . 5 . 12 Classes Destroyed 19 | . 1 2 . . . 1 1 2 1 1 . . 2 . 1 3 . . 2 . . 1 . . . . . . . . . . . . 1 Worker 33 | . . . . . . . 2 3 3 . . . . . 3 . . . 11 . . 1 . . . . 2 . . . . 1 1 2 4 Builder 14 | . . . . . . 1 . . . . . . . . 1 1 . . 4 . . . . . . . 1 . . . . . 1 5 . Tunneler 6 | . . 1 . . . 1 . . . . . . . . . . . . . . . 1 . . . . 1 . . . . 1 . 1 . Hauler 31 | . 1 . . . . . 2 . 1 . . . . . 4 12 . . 1 . . 2 . . . . . . . . . 1 6 1 . Recycler 10 | . . . . . . . . . . . . . . . . 1 . . 4 . . 1 . . . . 1 . . . . . 1 . 2 Carrier 1 | . . . . . . . . . . . . . . . . . . . 1 . . . . . . . . . . . . . . . . Mechanic 1 | . . . . . . . . . . . . . . . . . . . . . . 1 . . . . . . . . . . . . . Operator 6 | . . . . . . . . 3 1 . . . . . . 1 . . 1 . . . . . . . . . . . . . . . . Drone 1 | . . . . . . . . . . . . . . . . . . . 1 . . . . . . . . . . . . . . . . Watcher 13 | . . . . . . . . . 1 . . . . . 1 . 1 . 1 1 . 1 . . . . 1 . . . . . 3 1 2 Swarmer 45 | . . 3 . . . 4 . 1 . 4 . . . . . 3 . . . . . . 2 . . . . 5 . 1 7 . 5 . 10 Grunt 20 | . . . . . . . . 1 . 1 . . . 2 3 6 . . 3 . . . . . . . . . . 4 . . . . . Duelist 1 | . . . . . . . . . . . . . . . . 1 . . . . . . . . . . . . . . . . . . . Sentry 5 | . . . . . . . . . . . . . . . . 2 . . 2 . . . . . . . . . . . . . . . 1 Hunter 2 | . . . . . . . . . . . . . . . . . . . . . . . . . . . . . . . . . . . 2 Programmer 8 | . . . . . . . . . . . . . . . 1 . . . 1 . . . . . . . . . . . 2 . . 1 3 Cetus Guard 3 | . . . . . . . . . . . . . . . . . 3 . . . . . . . . . . . . . . . . . . M Guard 1 | . . . . . . . . . . . . . . . . . . . . . . . . . . . . . . . . . . . 1 Z-Light 1 | . . . . . . . . . . . . . 1 . . . . . . . . . . . . . . . . . . . . . . Decomposer 1 | . . . . . . . . . . 1 . . . . . . . . . . . . . . . . . . . . . . . . . Packrat 5 | . . . . . . . . . . 2 3 . . . . . . . . . . . . . . . . . . . . . . . . Assembled 6 | . . . . . . . . . . . . . 6 . . . . . . . . . . . . . . . . . . . . . . Savage 1 | . . . . . . . . . . . . . . . . 1 . . . . . . . . . . . . . . . . . . . Butcher 1 | . . . . . . . . . . . . . . . . 1 . . . . . . . . . . . . . . . . . . . Best Kill Streak 27 | . 1 3 . . . 4 3 3 3 4 . . 4 2 3 5 3 . 27 1 . 1 2 . . . 2 5 . 5 4 1 5 4 6 Combat Bots Only 6 | . . 3 . . . 4 . 1 . 4 . . 4 2 3 3 2 . 5 . . . 2 . . . . 5 . 5 4 . 5 1 6 Max Kills in Single Turn 9 | . 1 2 . . . 1 1 1 1 1 1 . 1 1 1 5 1 . 9 1 . 1 1 . . . 1 5 . 2 3 1 3 3 3 Gunslinging 1 | . . 1 . . . . . . . . . . . . . . . . . . . . . . . . . . . . . . . . . Exploded 5 | . . . . . . . . . . . . . 1 . . 3 . . 1 . . . 1 . . . . 5 . 2 3 . 3 . 3 Melee 1 | . . . . . . . . 1 . 1 . . 1 1 1 1 . . . . . . . . . . . . . . 1 . . 1 1 Uniques/NPCs Destroyed 1 | . . . . . . . . . . . . . 1 . . . . . . . . . . . . . . . . . . . . . . Z-Imprinter (-7/Deep Caves) Combat | -11 -10 -10 -9 -9 -9 -8 -8 -8 -7 -7 -7 -7 -7 -6 -6 -6 -6 -6 -6 -5 -5 -5 -5 -5 -5 -4 -4 -4 -4 -4 -3 -3 -2 -1 -1 -------- Run | Scr Mat Min Mat Min Exi Min Mat Sto Fac Low Low Zio Dee Pro Fac Ext Cet Arc Hub Fac Was Fac Upp Upp Zhi Pro Fac Upp Upp War Pro Res Res Acc Com Damage Taken 8162 | . 24 147 60 37 . 300 . 628 18 97 39 . 179 78 280 749 93 . 752 . 15 52 19 . . . . 30 . 11 130 . 444 155 3825 Core 2789 | . 24 13 14 33 . 103 . 239 . 15 17 . 66 . 39 255 31 . 179 . . . . . . . . . . 11 24 . 91 . 1635 Absorbed by Shields 137 | . . . . . . . . . 2 . . . . . . 15 21 . . . . . . . . . . . . 11 5 . . . 83 Core Remaining (%) 81 | 100 . 85 . . . 62 . 56 . . . . . 86 . . . . 40 . . . . . . 100 . . . . 96 100 93 . . Volleys Fired 286 | . 11 9 . . . 23 19 5 . . . . 9 . . 92 12 . 34 15 . . 2 . . . . 1 . 6 14 . 7 1 26 Largest 2 | . 2 2 . . . 2 2 2 . . . . 1 . . 1 1 . 1 1 . . 1 . . . . 1 . 1 1 . 1 1 2 Hottest 188 | . 40 40 . . . 40 40 40 . . . . 39 . . 90 75 . 90 98 . . 80 . . . . 80 . 80 80 . 81 80 188 Shots Fired 354 | . 22 18 . . . 46 38 8 . . . . 9 . . 92 12 . 34 15 . . 2 . . . . 1 . 6 14 . 7 1 29 Gun 132 | . 22 18 . . . 46 38 8 . . . . . . . . . . . . . . . . . . . . . . . . . . . Cannon 138 | . . . . . . . . . . . . . . . . 63 12 . 33 15 . . . . . . . . . . . . 2 . 13 Launcher 61 | . . . . . . . . . . . . . 9 . . 6 . . 1 . . . 2 . . . . 1 . 6 14 . 5 1 16 Special 23 | . . . . . . . . . . . . . . . . 23 . . . . . . . . . . . . . . . . . . . Kinetic 132 | . 22 18 . . . 46 38 8 . . . . . . . . . . . . . . . . . . . . . . . . . . . Thermal 42 | . . . . . . . . . . . . . . . . 6 . . 21 15 . . . . . . . . . . . . . . . Explosive 61 | . . . . . . . . . . . . . 9 . . 6 . . 1 . . . 2 . . . . 1 . 6 14 . 5 1 16 Electromagnetic 96 | . . . . . . . . . . . . . . . . 57 12 . 12 . . . . . . . . . . . . . 2 . 13 Robot Hit Streak 16 | . 6 8 . . . 16 10 2 . . . . 2 . . 12 8 . 10 6 . . . . . . . . . . 3 . 5 . 9 Robot Miss Streak 3 | . 3 3 . . . 2 3 2 . . . . . . . 2 . . 3 1 . . . . . . . . . . . . . . 1 Penetration Max . | . . . . . . . . . . . . . . . . . . . . . . . . . . . . . . . . . . . . Secondary Targets 1 | . . 1 . . . . . . . . . . . . . . . . . . . . . . . . . . . . . . . . . Max Gunslinging Chain 1 | . . 1 . . . . . . . . . . . . . . . . . . . . . . . . . . . . . . . . . Shots Hit Robots 407 | . 15 11 . . . 32 22 20 8 10 7 . 4 4 23 110 9 . 10 4 . 11 . 8 7 . 8 . . . 7 10 20 13 34 Core Hits 291 | . 1 6 . . . 11 10 5 1 7 2 . 11 3 13 42 7 . 43 1 . 6 4 4 1 . 5 5 . 14 13 3 20 13 40 Critical Hits 6 | . . . . . . . . . . . . . . 1 . 4 . . . . . . . . . . . . . . . . . . 1 Critical Kills 1 | . . . . . . . . . . . . . . . . 1 . . . . . . . . . . . . . . . . . . . Critical Parts Destroyed 3 | . . . . . . . . . . . . . . 1 . 2 . . . . . . . . . . . . . . . . . . . Melee Attacks 510 | . . . . . . . 1 30 21 12 17 . 18 9 44 62 1 . . . . 18 5 56 7 2 20 13 11 8 10 23 43 25 54 Impact 49 | . . . . . . . 1 29 19 . . . . . . . . . . . . . . . . . . . . . . . . . . Slashing 333 | . . . . . . . . . 2 12 17 . 18 9 44 37 . . . . . 18 5 56 7 2 20 13 11 8 10 23 21 . . Piercing 101 | . . . . . . . . . . . . . . . . . . . . . . . . . . . . . . . . . 22 25 54 Sneak Attacks 103 | . . . . . . . . 9 7 5 3 . . . 10 29 1 . . . . 7 . . . . 7 . . . . 3 9 6 7 Combat Hostiles 4 | . . . . . . . . 2 . 1 . . . . . 1 . . . . . . . . . . . . . . . . . . . Follow-up Attacks 3 | . . . . . . . . . . . . . . . . . . . . . . . . . . . . . . . . . . . 3 Damage Inflicted 33347 | . 150 118 . 8 . 256 202 921 650 1018 931 . 582 230 2276 4737 246 . 4185 165 . 1285 302 1077 1056 . 1143 406 . 1061 1259 862 2517 1422 4282 Guns 753 | . 150 118 . . . 256 202 27 . . . . . . . . . . . . . . . . . . . . . . . . . . . Cannons 2787 | . . . . . . . . . . . . . . . . 1675 246 . 402 165 . . . . . . . . . . . . 74 . 225 Explosions 11467 | . . . . . . . . . . . . . 429 . . 1451 . . 3783 . . . 302 . . . . 406 . 1061 1024 . 631 175 2205 Melee 18330 | . . . . . . . . 892 650 1018 931 . 153 230 2276 1611 . . . . . 1285 . 1077 1056 . 1143 . . . 235 862 1812 1247 1852 Ramming 10 | . . . . 8 . . . 2 . . . . . . . . . . . . . . . . . . . . . . . . . . . Kinetic 753 | . 150 118 . . . 256 202 27 . . . . . . . . . . . . . . . . . . . . . . . . . . . Thermal 752 | . . . . . . . . . . . . . . . . 455 . . 132 165 . . . . . . . . . . . . . . . Explosive 7715 | . . . . . . . . . . . . . 429 . . 1156 . . 326 . . . 302 . . . . 406 . 1061 1024 . 631 175 2205 Electromagnetic 5787 | . . . . . . . . . . . . . . . . 1515 246 . 3727 . . . . . . . . . . . . . 74 . 225 Impact 1542 | . . . . . . . . 892 650 . . . . . . . . . . . . . . . . . . . . . . . . . . Slashing 13092 | . . . . . . . . . . 1018 931 . 153 230 2276 1611 . . . . . 1285 . 1077 1056 . 1143 . . . 235 862 1215 . . Piercing 3696 | . . . . . . . . . . . . . . . . . . . . . . . . . . . . . . . . . 597 1247 1852 Highest Corruption 10 | . . . . . . . . . . . . . . . 3 3 . . 3 . . . 1 1 1 1 . . . 2 . . . . 10 Average Corruption 1 | . . . . . . . . . . . . . . . 1 2 . . 2 . . . 1 1 1 1 . . . 1 . . . . 1 Corruption Purged 3 | . . . . . . . . . . . . . . . . 3 . . . . . . . . . . . . . . . . . . . Effects 65 | . . . . . . . . . . . . . . . 9 38 . . . . . . 2 9 . 2 . . . . . . . . 5 Message Errors 16 | . . . . . . . . . . . . . . . 1 5 . . . . . . 2 6 . . . . . . . . . . 2 Matter Fused 8 | . . . . . . . . . . . . . . . 2 6 . . . . . . . . . . . . . . . . . . . Heat Flow Errors 9 | . . . . . . . . . . . . . . . 2 7 . . . . . . . . . . . . . . . . . . . Energy Discharges 10 | . . . . . . . . . . . . . . . . 6 . . . . . . . 1 . . . . . . . . . . 3 Data Loss (minor) 16 | . . . . . . . . . . . . . . . 3 10 . . . . . . . 1 . 2 . . . . . . . . . Targeting Errors 6 | . . . . . . . . . . . . . . . 1 4 . . . . . . . 1 . . . . . . . . . . . Overload Shots . | . . . . . . . . . . . . . . . . . . . . . . . . . . . . . . . . . . . . Overflow Damage 5353 | . . . . . . . . 401 429 384 391 . 11 . 244 351 . . 293 55 . 147 99 405 385 . 313 . . 30 67 234 418 174 522 Projectiles 126 | . . . . . . . . . . . . . . . . 35 . . 36 55 . . . . . . . . . . . . . . . Explosions 544 | . . . . . . . . . . . . . 11 . . 7 . . 257 . . . 99 . . . . . . 30 22 . 13 . 105 Melee 4683 | . . . . . . . . 401 429 384 391 . . . 244 309 . . . . . 147 . 405 385 . 313 . . . 45 234 405 174 417 Knockbacks 10 | . . . . . . . . 5 5 . . . . . . . . . . . . . . . . . . . . . . . . . . Impact 10 | . . . . . . . . 5 5 . . . . . . . . . . . . . . . . . . . . . . . . . . Kinetic . | . . . . . . . . . . . . . . . . . . . . . . . . . . . . . . . . . . . . Secondary . | . . . . . . . . . . . . . . . . . . . . . . . . . . . . . . . . . . . . Self-Inflicted Damage 318 | . . . . 4 . . . 1 . . . . . . . 16 . . 121 . . . . . . . . . . . . . 50 . 126 Shots 8 | . . . . . . . . . . . . . . . . 1 . . 2 . . . . . . . . . . . . . 1 . 4 Rammed 3 | . . . . 2 . . . 1 . . . . . . . . . . . . . . . . . . . . . . . . . . . Targets Rammed 3 | . . . . 2 . . . 1 . . . . . . . . . . . . . . . . . . . . . . . . . . . Kicked . | . . . . . . . . . . . . . . . . . . . . . . . . . . . . . . . . . . . . Crushed . | . . . . . . . . . . . . . . . . . . . . . . . . . . . . . . . . . . . . Highest Temperature 402 | . . . . . . . . . . . . . 13 . 132 402 129 . 230 211 2 . 68 . . . . . . . . . 58 . 48 Average Temperature 81 | . . . . . . . . . . . . . 13 . 69 87 55 . 88 89 2 . 39 . . . . . . . . . 11 . 33 Received Heat Transfer 884 | . . . 27 18 . 81 . 117 9 . . . 45 . 90 285 12 . 90 . . . . . . . . . . . 9 . 38 36 27 Effects 1 | . . . . . . . . . . . . . . . . 1 . . . . . . . . . . . . . . . . . . . Energy Bleed 1 | . . . . . . . . . . . . . . . . 1 . . . . . . . . . . . . . . . . . . . Siege Activations . | . . . . . . . . . . . . . . . . . . . . . . . . . . . . . . . . . . . . Robots Corrupted 23 | . . . . . . . . . . . . . . . . 11 1 . 9 . . . . . . . . . . . . . . . 2 Combat Hostiles 8 | . . . . . . . . . . . . . . . . 2 1 . 3 . . . . . . . . . . . . . . . 2 Parts Fried 45 | . . . . . . . . 2 2 . . . . . . 21 3 . 14 . . . . . . . . . . . . . 1 . 2 Impact Corruptions 27 | . . . . . . . . 14 13 . . . . . . . . . . . . . . . . . . . . . . . . . . Robots Melted . | . . . . . . . . . . . . . . . . . . . . . . . . . . . . . . . . . . . . Combat Hostiles . | . . . . . . . . . . . . . . . . . . . . . . . . . . . . . . . . . . . . Parts Melted . | . . . . . . . . . . . . . . . . . . . . . . . . . . . . . . . . . . . . Heat Transferred 909 | . . . . . . . . . . . . . . . . 511 . . 148 250 . . . . . . . . . . . . . . . Parts Sabotaged . | . . . . . . . . . . . . . . . . . . . . . . . . . . . . . . . . . . . . Parts Stolen . | . . . . . . . . . . . . . . . . . . . . . . . . . . . . . . . . . . . . Parts Stripped . | . . . . . . . . . . . . . . . . . . . . . . . . . . . . . . . . . . . . Power Chain Reactions 5 | . . . . . . . . . . . . . . . . 3 . . 2 . . . . . . . . . . . . . . . . Missiles Intercepted . | . . . . . . . . . . . . . . . . . . . . . . . . . . . . . . . . . . . . Alert | -11 -10 -10 -9 -9 -9 -8 -8 -8 -7 -7 -7 -7 -7 -6 -6 -6 -6 -6 -6 -5 -5 -5 -5 -5 -5 -4 -4 -4 -4 -4 -3 -3 -2 -1 -1 ------- Run | Scr Mat Min Mat Min Exi Min Mat Sto Fac Low Low Zio Dee Pro Fac Ext Cet Arc Hub Fac Was Fac Upp Upp Zhi Pro Fac Upp Upp War Pro Res Res Acc Com Peak Influence 2297 | . 27 85 116 37 . 100 124 433 422 . . . . . 130 1228 754 536 2297 1115 305 676 . . . . 134 . . . . 440 714 580 829 Average Influence 341 | . 9 80 53 32 . 88 61 231 255 . . . . . 62 700 437 301 958 619 286 372 . . . . 33 . . . . 104 416 278 394 Maximum Alert Level 5 | . . . . . . . . 2 2 . . . . . . 4 3 2 5 4 1 2 . . . . . . . . . 2 3 2 3 Low Security (%) 43 | 100 100 100 100 100 . 100 100 44 33 . . . . . 100 27 . 45 . . 6 . . . . . 100 . . . . 94 2 51 37 Level 1 23 | . . . . . . . . 37 62 . . . . . . 8 53 24 4 . 93 66 . . . . . . . . . . 45 11 14 Level 2 19 | . . . . . . . . 18 4 . . . . . . 7 36 30 7 95 . 33 . . . . . . . . . 5 52 36 20 Level 3 10 | . . . . . . . . . . . . . . . . 38 10 . 81 . . . . . . . . . . . . . . . 27 Level 4 3 | . . . . . . . . . . . . . . . . 18 . . 4 4 . . . . . . . . . . . . . . . Level 5 . | . . . . . . . . . . . . . . . . . . . 2 . . . . . . . . . . . . . . . . High Security . | . . . . . . . . . . . . . . . . . . . . . . . . . . . . . . . . . . . . Max Security . | . . . . . . . . . . . . . . . . . . . . . . . . . . . . . . . . . . . . Squads Dispatched 53 | . . . 1 . . . . 3 5 . . . . . 3 4 . . 6 2 . 6 . . . . 5 . . . . 7 3 5 3 Investigation 13 | . . . . . . . . . 1 . . . . . 2 1 . . 1 . . 2 . . . . 1 . . . . 2 1 2 . Extermination 2 | . . . . . . . . . . . . . . . . . . . . . . . . . . . 1 . . . . . . . 1 Reinforcement 25 | . . . 1 . . . . 3 2 . . . . . 1 1 . . 3 . . 2 . . . . 3 . . . . 5 2 . 2 Assault 6 | . . . . . . . . . . . . . . . . 2 . . 1 2 . 1 . . . . . . . . . . . . . Garrison 7 | . . . . . . . . . 2 . . . . . . . . . 1 . . 1 . . . . . . . . . . . 3 . Intercept . | . . . . . . . . . . . . . . . . . . . . . . . . . . . . . . . . . . . . Construction Impeded 3 | . . . . . . . . . . . . . . . . . . . 2 . . . . . . . 1 . . . . . . . . Haulers Reinforced 6 | . . . . . . . . . . . . . . . 1 . . . . . . 2 . . . . . . . . . 1 2 . . Stealth | -11 -10 -10 -9 -9 -9 -8 -8 -8 -7 -7 -7 -7 -7 -6 -6 -6 -6 -6 -6 -5 -5 -5 -5 -5 -5 -4 -4 -4 -4 -4 -3 -3 -2 -1 -1 --------- Run | Scr Mat Min Mat Min Exi Min Mat Sto Fac Low Low Zio Dee Pro Fac Ext Cet Arc Hub Fac Was Fac Upp Upp Zhi Pro Fac Upp Upp War Pro Res Res Acc Com Distress Signals 36 | . . . 3 . . . 1 3 . . . . . . 3 2 2 . 5 . . . . . . . . . . . . 10 4 1 2 Communications Jammed . | . . . . . . . . . . . . . . . . . . . . . . . . . . . . . . . . . . . . Distress Signals . | . . . . . . . . . . . . . . . . . . . . . . . . . . . . . . . . . . . . Times Spotted 342 | . 5 6 11 6 . 10 4 24 8 4 3 . 5 3 15 49 10 . 37 3 6 13 1 2 . 2 11 3 3 . 10 5 31 15 37 Peak Tracking Total 19 | . 4 3 9 6 . 4 3 8 3 3 3 . 3 3 5 8 5 . 19 2 3 3 2 4 . 2 3 5 4 7 3 2 6 5 12 Tactical Retreats 34 | . . . . . . 2 . 1 2 . 1 . . . 1 3 . . . . . . 1 3 . 2 2 . 3 . 3 . 4 3 3 Traps | -11 -10 -10 -9 -9 -9 -8 -8 -8 -7 -7 -7 -7 -7 -6 -6 -6 -6 -6 -6 -5 -5 -5 -5 -5 -5 -4 -4 -4 -4 -4 -3 -3 -2 -1 -1 ------- Run | Scr Mat Min Mat Min Exi Min Mat Sto Fac Low Low Zio Dee Pro Fac Ext Cet Arc Hub Fac Was Fac Upp Upp Zhi Pro Fac Upp Upp War Pro Res Res Acc Com Traps Triggered 14 | . . . . . . . . 1 . . . . . . 1 4 . . . 1 . . . . . . 1 . . . . 2 . . 4 Indirectly . | . . . . . . . . . . . . . . . . . . . . . . . . . . . . . . . . . . . . Trap Hack Attempts . | . . . . . . . . . . . . . . . . . . . . . . . . . . . . . . . . . . . . Triggered . | . . . . . . . . . . . . . . . . . . . . . . . . . . . . . . . . . . . . Disarmed 5 | . . . . . . . . . . . . . . . . . . . . . . 1 . . . . . . . . . 4 . . . Reprogrammed 5 | . . . . . . . . . . . . . . . . . . . . . . . . . . . . . . . . 5 . . . Reused . | . . . . . . . . . . . . . . . . . . . . . . . . . . . . . . . . . . . . Traps Extracted . | . . . . . . . . . . . . . . . . . . . . . . . . . . . . . . . . . . . . Installed . | . . . . . . . . . . . . . . . . . . . . . . . . . . . . . . . . . . . . Triggered 16 | . . . . . . . . 1 . . 1 . . . . . . . . . . . . 2 . . . . 1 9 2 . . . . Machines | -11 -10 -10 -9 -9 -9 -8 -8 -8 -7 -7 -7 -7 -7 -6 -6 -6 -6 -6 -6 -5 -5 -5 -5 -5 -5 -4 -4 -4 -4 -4 -3 -3 -2 -1 -1 ---------- Run | Scr Mat Min Mat Min Exi Min Mat Sto Fac Low Low Zio Dee Pro Fac Ext Cet Arc Hub Fac Was Fac Upp Upp Zhi Pro Fac Upp Upp War Pro Res Res Acc Com Machines Disabled 61 | . . . . . . . . 3 . . . . 2 . . 4 1 . 45 . . 3 . . . . 1 . . . . . . . 2 Max in Single Turn 19 | . . . . . . . . 1 . . . . 1 . . 1 1 . 19 . . . . . . . . . . . . . . . 1 Garrison Access 11 | . . . . . . . . . 1 . . . . . 1 . . . 1 1 . 2 . . . . 2 . . . . . 2 1 . Network Hub 3 | . . . . . . . . . . . . . . . . . . . 3 . . . . . . . . . . . . . . . . Machines Sabotaged . | . . . . . . . . . . . . . . . . . . . . . . . . . . . . . . . . . . . . Garrisons Compromised . | . . . . . . . . . . . . . . . . . . . . . . . . . . . . . . . . . . . . Overloaded Fab Kills . | . . . . . . . . . . . . . . . . . . . . . . . . . . . . . . . . . . . . Fab Network Shutdowns 2 | . . . . . . . . . . . . . . . . . . . . . . . . . . . . . . . . 1 1 . . Hacking | -11 -10 -10 -9 -9 -9 -8 -8 -8 -7 -7 -7 -7 -7 -6 -6 -6 -6 -6 -6 -5 -5 -5 -5 -5 -5 -4 -4 -4 -4 -4 -3 -3 -2 -1 -1 --------- Run | Scr Mat Min Mat Min Exi Min Mat Sto Fac Low Low Zio Dee Pro Fac Ext Cet Arc Hub Fac Was Fac Upp Upp Zhi Pro Fac Upp Upp War Pro Res Res Acc Com Machines Accessed 141 | . 3 . 2 . 5 . 5 4 6 . 2 . . . 12 9 5 . 5 4 . 11 1 2 9 . 9 . 2 13 . 6 6 12 8 Terminals 74 | . 3 . 2 . . . 3 4 2 . 1 . . . 9 9 5 . 4 2 . 4 . . . . 3 . . . . 4 2 10 7 Fabricators 9 | . . . . . . . . . 1 . . . . . . . . . . 1 . 2 . . . . 2 . . . . 1 1 1 . Repair Stations 7 | . . . . . . . 1 . 2 . . . . . 1 . . . . . . 1 . . . . 1 . . . . . . . 1 Recycling Units 5 | . . . . . . . . . . . . . . . 1 . . . . . . 2 . . . . 1 . . . . 1 . . . Scanalyzers 1 | . . . . . . . 1 . . . . . . . . . . . . . . . . . . . . . . . . . . . . Garrison Access 12 | . . . . . . . . . 1 . . . . . 1 . . . 1 1 . 2 . . . . 2 . . . . . 3 1 . Total Hacks 618 | . 12 . 6 . 49 . 19 12 17 . 4 . . . 45 28 21 . 10 38 . 69 1 3 48 . 46 . 2 20 . 33 26 57 52 Successful 441 | . 6 . 1 . 49 . 10 8 12 . 3 . . . 31 14 8 . 5 17 . 46 1 3 48 . 39 . 2 20 . 26 16 39 37 Failed 173 | . 6 . 5 . . . 9 4 5 . 1 . . . 13 14 13 . 5 21 . 22 . . . . 6 . . . . 7 9 18 15 Catastrophic 23 | . . . . . . . 2 1 . . . . . . 3 5 4 . 1 1 . . . . . . . . . . . . 3 3 . Database Lockouts 5 | . . . . . . . . . . . . . . . 2 . . . . . . 1 . . . . 1 . . . . . 1 . . Manual 285 | . 6 . 6 . 1 . 11 9 4 . 2 4 . . 21 19 18 . 6 31 . 26 . . . . 27 . . . . 12 20 27 35 Terminals 375 | . 12 . 6 . . . 14 12 5 . 3 . . . 37 28 21 . 9 33 . 36 . . . . 26 . . . . 21 14 50 48 Fabricators 62 | . . . . . . . . . 3 . . . . . . . . . . 4 . 16 . . . . 15 . . . . 11 7 6 . Repair Stations 30 | . . . . . . . 2 . 6 . . . . . 5 . . . . . . 11 . . . . 2 . . . . . . . 4 Recycling Units 7 | . . . . . . . . . . . . . . . 2 . . . . . . 3 . . . . 1 . . . . 1 . . . Scanalyzers 3 | . . . . . . . 3 . . . . . . . . . . . . . . . . . . . . . . . . . . . . Garrison Access 17 | . . . . . . . . . 3 . . . . . 1 . . . 1 1 . 3 . . . . 2 . . . . . 5 1 . Terminal Hacks 286 | . 4 . . . 49 . 4 6 2 . 3 . . . 18 11 5 . 1 12 . 15 1 3 48 . 15 . 2 20 . 13 3 27 24 Record 106 | . . . . . 48 . . . . . 1 . . . . . 1 . . . . . . 2 36 . . . . 18 . . . . . Part Schematic 14 | . . . . . . . 1 . . . . . . . . . . . . 2 . 1 . . 4 . 3 . . . . . 1 2 . Robot Schematic 2 | . . . . . . . . 2 . . . . . . . . . . . . . . . . . . . . . . . . . . . Robot Analysis 12 | . . . . . . . 1 . . . 1 . . . 3 . . . . . . . . . 4 . . . . . . 1 . 1 1 Prototype ID Bank 21 | . 1 . . . . . . . 1 . . . . . 3 . . . . . . 2 . . 4 . 1 . . . . 3 . 4 2 Open Door 20 | . . . . . . . . 2 . . 1 . . . 1 5 1 . . . . . 1 1 . . . . 2 2 . . . 4 . Level Access Points 4 | . . . . . . . . . . . . . . . 1 . . . . 1 . . . . . . . . . . . 1 . . 1 Branch Access Points 6 | . . . . . . . . . 1 . . . . . 1 . . . . 1 . . . . . . 1 . . . . 1 . 1 . Emergency Access Points 4 | . . . . . . . . . . . . . . . . . . . . . . 1 . . . . . . . . . . . . 3 Machine Index 6 | . . . . . . . . . . . . . . . . . . . . . . 1 . . . . 1 . . . . 1 1 1 1 Terminal Index 2 | . . . . . . . . . . . . . . . . . . . . . . . . . . . . . . . . . . 1 1 Fabricator Index 1 | . . . . . . . . . . . . . . . . . . . . . . . . . . . . . . . . . . 1 . Repair Station Index 2 | . . . . . . . . . . . . . . . 1 . . . . . . . . . . . . . . . . . . 1 . Alert Level 13 | . . . . . . . . 1 . . . . . . 1 1 . . . 2 . 2 . . . . 2 . . . . . . 2 2 Unreport Threat 23 | . . . . . . . . 1 . . . . . . . 3 3 . . 4 . 3 . . . . . . . . . . . 3 6 Locate Traps 10 | . 1 . . . . . 1 . . . . . . . 1 1 . . . . . 2 . . . . . . . . . 2 . 2 . Disarm Traps 2 | . . . . . . . . . . . . . . . . . . . . . . 1 . . . . . . . . . 1 . . . Reprogram Traps 1 | . . . . . . . . . . . . . . . . . . . . . . . . . . . . . . . . 1 . . . Dispatch Records 1 | . . . . . . . . . . . . . . . . . . . . . . . . . . . 1 . . . . . . . . Patrol Status 1 | . 1 . . . . . . . . . . . . . . . . . . . . . . . . . . . . . . . . . . Transport Status 1 | . 1 . . . . . . . . . . . . . . . . . . . . . . . . . . . . . . . . . . Recall Investigation 2 | . . . . . . . . . . . . . . . 1 . . . . . . . . . . . 1 . . . . . . . . Recall Extermination 2 | . . . . . . . . . . . . . . . . . . . . . . . . . . . 1 . . . . . . . 1 Recall Reinforcements 4 | . . . . . . . . . . . . . . . 1 1 . . . . . . . . . . 2 . . . . . . . . Recall Assault 2 | . . . . . . . . . . . . . . . . . . . . 1 . 1 . . . . . . . . . . . . . Hauler Manifests 7 | . . . . . . . 1 . . . . . . . 1 . . . . . . 1 . . . . 1 . . . . 1 1 1 . Registered Components 5 | . . . . . . . . . . . . . . . 2 . . . . . . . . . . . 1 . . . . 1 . 1 . Registered Prototypes 1 | . . . . . . . . . . . . . . . . . . . . . . . . . . . . . . . . . . 1 . Zone Layout 8 | . . . . . . . . . . . . . . . 1 . . . 1 1 . . . . . . . . . . . . . 1 4 EX-Prototype ID Bank 1 | . . . . . 1 . . . . . . . . . . . . . . . . . . . . . . . . . . . . . . Disengage Seal 2 | . . . . . . . . . . . . . . . . . . . . . . . . . . . . . . . . . . . 2 Fabricator Hacks 29 | . . . . . . . . . 2 . . . . . . . . . . . . 9 . . . . 10 . . . . 4 2 2 . Network Status 1 | . . . . . . . . . . . . . . . . . . . . . . 1 . . . . . . . . . . . . . Load Schematic 12 | . . . . . . . . . 1 . . . . . . . . . . . . 3 . . . . 4 . . . . 2 1 1 . Build 16 | . . . . . . . . . 1 . . . . . . . . . . . . 5 . . . . 6 . . . . 2 1 1 . Repair Station Hacks 23 | . . . . . . . 2 . 5 . . . . . 3 . . . . . . 8 . . . . 2 . . . . . . . 3 Scan Component 13 | . . . . . . . 1 . 3 . . . . . 2 . . . . . . 4 . . . . 1 . . . . . . . 2 Repair 10 | . . . . . . . 1 . 2 . . . . . 1 . . . . . . 4 . . . . 1 . . . . . . . 1 Recycling Unit Hacks 5 | . . . . . . . . . . . . . . . 1 . . . . . . 2 . . . . 1 . . . . 1 . . . Retrieve Components 5 | . . . . . . . . . . . . . . . 1 . . . . . . 2 . . . . 1 . . . . 1 . . . Scanalyzer 2 | . . . . . . . 2 . . . . . . . . . . . . . . . . . . . . . . . . . . . . Insert Component 1 | . . . . . . . 1 . . . . . . . . . . . . . . . . . . . . . . . . . . . . Analyze 1 | . . . . . . . 1 . . . . . . . . . . . . . . . . . . . . . . . . . . . . Garrison Access Hacks 10 | . . . . . . . . . . . . . . . 1 . . . 1 1 . 2 . . . . 2 . . . . . 2 1 . Seal Access 10 | . . . . . . . . . . . . . . . 1 . . . 1 1 . 2 . . . . 2 . . . . . 2 1 . Unauthorized Hacks 197 | . 5 . 7 . . . 7 5 6 . . . . . 18 7 8 . 9 10 . 20 . . . . 18 . . . . 19 18 20 20 Terminals 58 | . 2 . 1 . . . 2 2 2 . . . . . 8 3 3 . 3 2 . 4 . . . . 4 . . . . 4 2 6 10 Track 4 | . 1 . . . . . . . . . . . . . . . . . . . . . . . . . . . . . . . . . 3 Assimilate 11 | . . . . . . . . . 1 . . . . . 3 . . . . . . 1 . . . . 2 . . . . 1 . 2 1 Botnet 35 | . 1 . 1 . . . 1 2 1 . . . . . 3 2 3 . 2 2 . 3 . . . . 2 . . . . 3 2 3 4 Detonate 2 | . . . . . . . . . . . . . . . 1 . . . 1 . . . . . . . . . . . . . . . . Disrupt 5 | . . . . . . . . . . . . . . . 1 1 . . . . . . . . . . . . . . . . . 1 2 Operators 1 | . . . . . . . 1 . . . . . . . . . . . . . . . . . . . . . . . . . . . . Fabricators 24 | . . . . . . . . . . . . . . . . . . . . 2 . 6 . . . . 5 . . . . 4 4 3 . Report 6 | . . . . . . . . . . . . . . . . . . . . 1 . 1 . . . . 1 . . . . 1 1 1 . Prioritize 7 | . . . . . . . . . . . . . . . . . . . . . . 2 . . . . 2 . . . . 1 1 1 . Siphon 7 | . . . . . . . . . . . . . . . . . . . . . . 2 . . . . 2 . . . . 1 1 1 . Haulers 4 | . . . . . . . . . . . . . . . . . . . . 1 . 1 . . . . . . . . . 1 1 . . Repair Stations . | . . . . . . . . . . . . . . . . . . . . . . . . . . . . . . . . . . . . Recycling Units . | . . . . . . . . . . . . . . . . . . . . . . . . . . . . . . . . . . . . Scanalyzers . | . . . . . . . . . . . . . . . . . . . . . . . . . . . . . . . . . . . . Garrison Access 4 | . . . . . . . . . 1 . . . . . . . . . . . . . . . . . . . . . . . 3 . . Broadcast 1 | . . . . . . . . . . . . . . . . . . . . . . . . . . . . . . . . . 1 . . Reprogram 1 | . . . . . . . . . . . . . . . . . . . . . . . . . . . . . . . . . 1 . . Intercept 1 | . . . . . . . . . . . . . . . . . . . . . . . . . . . . . . . . . 1 . . Jam 1 | . . . . . . . . . 1 . . . . . . . . . . . . . . . . . . . . . . . . . . Data Cores Recovered . | . . . . . . . . . . . . . . . . . . . . . . . . . . . . . . . . . . . . Used . | . . . . . . . . . . . . . . . . . . . . . . . . . . . . . . . . . . . . Hacking Detections 86 | . 3 . 2 . . . 5 4 6 . 1 . . . 11 9 5 . 4 3 . 8 . . . . 4 . . . . 4 2 9 6 Full Trace Events 4 | . . . . . . . . . . . . . . . 1 1 . . . . . . . . . . . . . . . . . 2 . Feedback Events 1 | . . . . . . . . . . . . . . . 1 . . . . . . . . . . . . . . . . . . . . Corruption 1 | . . . . . . . . . . . . . . . 1 . . . . . . . . . . . . . . . . . . . . Feedback Blocked . | . . . . . . . . . . . . . . . . . . . . . . . . . . . . . . . . . . . . Robot Schematics Acquired 2 | . . . . . . . . 2 . . . . . . . . . . . . . . . . . . . . . . . . . . . Robots Built . | . . . . . . . . . . . . . . . . . . . . . . . . . . . . . . . . . . . . Matter . | . . . . . . . . . . . . . . . . . . . . . . . . . . . . . . . . . . . . Time . | . . . . . . . . . . . . . . . . . . . . . . . . . . . . . . . . . . . . Total Robot Build Rating . | . . . . . . . . . . . . . . . . . . . . . . . . . . . . . . . . . . . . Part Schematics Acquired 15 | . . . . . . . 2 . . . . . . . . . . . . 2 . 1 . . 4 . 3 . . . . . 1 2 . Parts Built 15 | . . . . . . . . . 1 . . . . . . . . . . . . 5 . . . . 5 . . . . 2 1 1 . Matter 3344 | . . . . . . . . . 285 . . . . . . . . . . . . 781 . . . . 1178 . . . . 476 312 312 . Time 1131 | . . . . . . . . . 152 . . . . . . . . . . . . 199 . . . . 508 . . . . 87 111 74 . Total Part Build Rating 89 | . . . . . . . . . 5 . . . . . . . . . . . . 25 . . . . 29 . . . . 12 9 9 . Parts Repaired 10 | . . . . . . . 1 . 2 . . . . . 1 . . . . . . 4 . . . . 1 . . . . . . . 1 Time 441 | . . . . . . . 26 . 93 . . . . . 62 . . . . . . 197 . . . . 22 . . . . . . . 41 Parts Recycled . | . . . . . . . . . . . . . . . . . . . . . . . . . . . . . . . . . . . . Recycled Matter . | . . . . . . . . . . . . . . . . . . . . . . . . . . . . . . . . . . . . Retrieved Matter . | . . . . . . . . . . . . . . . . . . . . . . . . . . . . . . . . . . . . Retrieved Components 24 | . . . . . . . . . . . . . . . 6 . . . . . . 12 . . . . 6 . . . . . . . . Parts Scanalyzed 1 | . . . . . . . 1 . . . . . . . . . . . . . . . . . . . . . . . . . . . . Part Schematics Acquired 1 | . . . . . . . 1 . . . . . . . . . . . . . . . . . . . . . . . . . . . . Parts Damaged . | . . . . . . . . . . . . . . . . . . . . . . . . . . . . . . . . . . . . Bothacking | -11 -10 -10 -9 -9 -9 -8 -8 -8 -7 -7 -7 -7 -7 -6 -6 -6 -6 -6 -6 -5 -5 -5 -5 -5 -5 -4 -4 -4 -4 -4 -3 -3 -2 -1 -1 ------------ Run | Scr Mat Min Mat Min Exi Min Mat Sto Fac Low Low Zio Dee Pro Fac Ext Cet Arc Hub Fac Was Fac Upp Upp Zhi Pro Fac Upp Upp War Pro Res Res Acc Com Used RIF Installer . | . . . . . . . . . . . . . . . . . . . . . . . . . . . . . . . . . . . . Robots Hacked 5 | . . . . . . . . 1 . . . . . . . 3 1 . . . . . . . . . . . . . . . . . . Non-combat 1 | . . . . . . . . . . . . . . . . 1 . . . . . . . . . . . . . . . . . . . Combat 4 | . . . . . . . . 1 . . . . . . . 2 1 . . . . . . . . . . . . . . . . . . Robot Hacks Applied 5 | . . . . . . . . 1 . . . . . . . 3 1 . . . . . . . . . . . . . . . . . . parse_system 5 | . . . . . . . . 1 . . . . . . . 3 1 . . . . . . . . . . . . . . . . . . Relay Couplers Released 10 | . . . . . . . . . . . . . . . . . . . 3 . . . . . . . . . . . . . 7 . . Machine Destruction 6 | . . . . . . . . . . . . . . . . . . . 3 . . . . . . . . . . . . . 3 . . Programmers 4 | . . . . . . . . . . . . . . . . . . . . . . . . . . . . . . . . . 4 . . Robots Rewired 27 | . . . . . . . . . 1 . . . . . . 18 . . . . . . . . . . 1 . . 5 . . 2 . . Allies Hacked 2 | . . . . . . . . . . . . . . . . . . . . . . . . . . . . . . . 1 . . . 1 Hacks Repelled . | . . . . . . . . . . . . . . . . . . . . . . . . . . . . . . . . . . . . Allies | -11 -10 -10 -9 -9 -9 -8 -8 -8 -7 -7 -7 -7 -7 -6 -6 -6 -6 -6 -6 -5 -5 -5 -5 -5 -5 -4 -4 -4 -4 -4 -3 -3 -2 -1 -1 -------- Run | Scr Mat Min Mat Min Exi Min Mat Sto Fac Low Low Zio Dee Pro Fac Ext Cet Arc Hub Fac Was Fac Upp Upp Zhi Pro Fac Upp Upp War Pro Res Res Acc Com Total Allies 143 | . . 2 . . . . . 11 2 . . 10 . . 3 27 5 3 . . 19 1 . . . . 3 . . 5 . 1 3 2 46 Largest Group 38 | . . 2 2 . . . . 11 5 . . 10 10 2 3 19 17 18 9 . 19 15 2 . . . 3 2 . 5 5 1 1 1 38 Highest-Rated Group 1694 | . . 49 49 . . . . 272 127 . . 244 244 50 46 670 926 1219 452 . 696 568 46 . . . 85 36 . 281 281 26 88 44 1694 Highest-Rated Ally 156 | . . 31 31 . . . . 99 79 . . 31 31 25 26 156 156 156 94 . 50 50 32 . . . 49 26 . 60 60 26 88 44 90 Total Orders 59 | . . . . . . . . 5 7 1 1 1 . . 1 3 5 . 24 . . 1 . . . . 2 4 . . 2 . . . 2 STAY 1 | . . . . . . . . 1 . . . . . . . . . . . . . . . . . . . . . . . . . . . GOTO 40 | . . . . . . . . 2 1 . . . . . 1 3 5 . 22 . . . . . . . 1 3 . . 1 . . . 1 FOLLOW 7 | . . . . . . . . 2 . . . . . . . . . . 1 . . . . . . . 1 1 . . 1 . . . 1 EXPLORE 8 | . . . . . . . . . 6 . . . . . . . . . 1 . . 1 . . . . . . . . . . . . . RETURN 3 | . . . . . . . . . . 1 1 1 . . . . . . . . . . . . . . . . . . . . . . . Ally Attacks 963 | . . 1 7 . . . . 60 13 . . . 63 7 . 259 63 24 145 . 131 122 . . . . 4 . . . 15 . . . 49 Total Damage 25717 | . . 20 126 . . . . 1312 203 . . . 893 198 . 4571 1643 1030 3896 . 5124 4109 . . . . 278 . . . 616 . . . 1698 Kills 147 | . . . 2 . . . . 16 2 . . . 7 1 . 38 7 9 22 . 11 20 . . . . 1 . . . 1 . . . 10 Allies Corrupted 2 | . . . . . . . . . . . . . . . . . . . 1 . . . . . . . . . . . . . . . 1 Allies Melted 1 | . . . . . . . . . . . . . . . . 1 . . . . . . . . . . . . . . . . . . . Intel | -11 -10 -10 -9 -9 -9 -8 -8 -8 -7 -7 -7 -7 -7 -6 -6 -6 -6 -6 -6 -5 -5 -5 -5 -5 -5 -4 -4 -4 -4 -4 -3 -3 -2 -1 -1 ------- Run | Scr Mat Min Mat Min Exi Min Mat Sto Fac Low Low Zio Dee Pro Fac Ext Cet Arc Hub Fac Was Fac Upp Upp Zhi Pro Fac Upp Upp War Pro Res Res Acc Com Robot Analysis Total 12 | . . . . . . . 1 . . . 1 . . . 3 . . . . . . . . . 4 . . . . . . 1 . 1 1 Derelict Logs Recovered 15 | . . 1 . . . . . . . 1 . . . 3 . . . . . . . . 3 1 . 2 . 2 2 . . . . . . Drone Launches 22 | . . . . . . . . 14 2 . . . . . . 2 . . 2 . . 2 . . . . . . . . . . . . . Drone Recoveries . | . . . . . . . . . . . . . . . . . . . . . . . . . . . . . . . . . . . . Exploration | -11 -10 -10 -9 -9 -9 -8 -8 -8 -7 -7 -7 -7 -7 -6 -6 -6 -6 -6 -6 -5 -5 -5 -5 -5 -5 -4 -4 -4 -4 -4 -3 -3 -2 -1 -1 ------------- Run | Scr Mat Min Mat Min Exi Min Mat Sto Fac Low Low Zio Dee Pro Fac Ext Cet Arc Hub Fac Was Fac Upp Upp Zhi Pro Fac Upp Upp War Pro Res Res Acc Com Turns Passed 20751 | 21 121 245 62 457 231 327 264 744 755 414 633 441 841 396 866 1959 298 66 459 421 345 1126 559 1091 131 506 940 578 509 587 629 748 1777 546 658 Spaces Moved 25031 | 31 156 409 115 174 441 486 341 597 885 743 1041 719 1006 695 1154 860 183 37 271 370 406 748 915 1101 171 814 1046 887 888 874 927 1136 3001 633 770 Core 25031 | 31 156 409 115 174 441 486 341 597 885 743 1041 719 1006 695 1154 860 183 37 271 370 406 748 915 1101 171 814 1046 887 888 874 927 1136 3001 633 770 Treads . | . . . . . . . . . . . . . . . . . . . . . . . . . . . . . . . . . . . . Legs . | . . . . . . . . . . . . . . . . . . . . . . . . . . . . . . . . . . . . Wheels . | . . . . . . . . . . . . . . . . . . . . . . . . . . . . . . . . . . . . Hover . | . . . . . . . . . . . . . . . . . . . . . . . . . . . . . . . . . . . . Flight . | . . . . . . . . . . . . . . . . . . . . . . . . . . . . . . . . . . . . Fastest Speed 50 | 50 50 50 50 50 50 50 50 50 50 50 50 50 50 50 50 50 100 100 100 100 50 50 50 50 50 50 50 50 50 50 50 50 50 50 50 Average Speed 55 | 50 50 50 50 50 50 50 50 50 50 50 50 50 50 50 56 92 100 100 100 100 68 88 50 51 50 50 51 50 50 50 50 50 50 56 53 Slowest Speed 150 | 50 50 50 50 50 50 50 50 100 50 50 50 50 50 50 100 150 100 100 150 100 100 100 150 100 50 50 100 50 50 50 50 50 50 100 100 Overloaded Moves . | . . . . . . . . . . . . . . . . . . . . . . . . . . . . . . . . . . . . Propulsion Burnouts . | . . . . . . . . . . . . . . . . . . . . . . . . . . . . . . . . . . . . Robots Hopped 1 | . . . . . . . . . . . 1 . . . . . . . . . . . . . . . . . . . . . . . . Cave-ins Triggered . | . . . . . . . . . . . . . . . . . . . . . . . . . . . . . . . . . . . . Exploration Rate (%) 63 | 4 39 80 19 36 80 93 38 51 34 95 97 91 83 85 38 90 92 74 61 14 95 29 86 92 62 90 30 89 93 95 92 30 64 16 34 Regions Visited 35 Branch Regions 23 Pre-discovered Areas 10 | . . . . . 1 . . . . . . 1 . 2 . . . . . . . . . . 3 . . 1 . 2 . . . . . Known Exits Taken 25 | . . . . . . . . 1 1 1 1 1 1 1 1 1 1 1 1 . . 1 1 1 1 1 1 1 1 1 1 1 1 1 . Unknown Exits Taken 8 | 1 1 1 1 1 1 1 1 . . . . . . . . . . . . . . . . . . . . . . . . . . . . Scrap Searched 34 | . . 1 . . . 1 . . . 3 5 1 . 4 . . . . . . . . 3 3 . 1 . 3 5 . 4 . . . . Spaces Dug 320 | . . . . . . . 1 2 4 . 7 . 48 5 12 1 . . 10 5 . 4 5 48 . 2 12 13 10 8 3 12 40 29 39 Terrain Destroyed 1442 | . . . . . . . 1 2 4 . 7 . 106 5 12 84 . . 531 8 . 4 42 48 . 2 12 32 10 83 137 12 118 29 153 Melee 212 | . . . . . . . 1 2 4 . 7 . 4 5 12 1 . . . . . 4 5 48 . 2 12 13 10 8 3 12 22 9 28 Projectile 24 | . . . . . . . . . . . . . . . . . . . 16 8 . . . . . . . . . . . . . . . AOE 1206 | . . . . . . . . . . . . . 102 . . 83 . . 515 . . . 37 . . . . 19 . 75 134 . 96 20 125 Actions | -11 -10 -10 -9 -9 -9 -8 -8 -8 -7 -7 -7 -7 -7 -6 -6 -6 -6 -6 -6 -5 -5 -5 -5 -5 -5 -4 -4 -4 -4 -4 -3 -3 -2 -1 -1 --------- Run | Scr Mat Min Mat Min Exi Min Mat Sto Fac Low Low Zio Dee Pro Fac Ext Cet Arc Hub Fac Was Fac Upp Upp Zhi Pro Fac Upp Upp War Pro Res Res Acc Com Total 30745 | 35 177 434 119 543 451 533 399 973 1167 760 1118 801 1296 724 1282 1865 285 66 423 409 477 1181 1001 1508 201 908 1408 994 930 1000 1057 1269 3199 783 969 Wait 4217 | . 5 8 . 368 7 17 29 279 234 6 52 75 242 19 53 688 86 30 101 9 49 377 76 348 6 93 316 90 32 65 93 95 81 118 70 Move 24995 | 30 155 408 114 173 440 485 340 596 884 742 1038 718 1005 694 1153 859 182 36 270 370 405 747 914 1100 170 813 1045 886 887 873 926 1135 3000 632 770 Hop 1 | . . . . . . . . . . . 1 . . . . . . . . . . . . . . . . . . . . . . . . Pick Up 88 | 3 1 3 . . 1 1 2 4 3 . . 2 . . 9 8 . . 3 2 8 5 . 2 1 . 2 . . 1 4 7 12 2 2 Fast Attach 140 | 2 3 2 2 . . 3 4 8 6 . 4 2 10 1 8 13 2 . 1 . 3 11 1 . 8 . 9 1 . 14 1 4 14 . 3 Attach 73 | . 1 . . . 1 1 1 6 1 . . . 1 . 4 18 . . 4 8 2 . 1 . . . 2 1 . 1 4 2 3 3 8 Detach 54 | . 1 . 1 . . . 1 6 . . . . 2 . 4 12 . . 2 5 1 4 1 . . . 1 1 . . 1 . 7 . 4 Swap 48 | . . . . . . 1 2 10 3 . 1 . 1 . 1 4 . . 5 . . 4 . . 1 . 4 . . . . . 6 . 5 Drop 157 | . . 4 2 . 2 2 . 6 9 . 5 4 8 1 6 16 2 . 2 . 9 14 1 2 8 . 7 1 . 15 4 3 21 1 2 Fire 286 | . 11 9 . . . 23 19 5 . . . . 9 . . 92 12 . 34 15 . . 2 . . . . 1 . 6 14 . 7 1 26 Melee 501 | . . . . . . . 1 30 21 12 17 . 18 9 44 62 1 . . . . 18 5 56 7 2 20 13 11 8 10 23 43 24 46 Ram 3 | . . . . 2 . . . 1 . . . . . . . . . . . . . . . . . . . . . . . . . . . Kick . | . . . . . . . . . . . . . . . . . . . . . . . . . . . . . . . . . . . . Crush . | . . . . . . . . . . . . . . . . . . . . . . . . . . . . . . . . . . . . Escape Stasis 120 | . . . . . . . . 15 . . . . . . . 72 . . . . . . . . . . . . . . . . . . 33 Rewire 51 | . . . . . . . . . 5 . . . . . . 20 . . . . . . . . . . 2 . . 17 . . 5 2 . Trap . | . . . . . . . . . . . . . . . . . . . . . . . . . . . . . . . . . . . . Miscellaneous 11 | . . . . . . . . 7 1 . . . . . . 1 . . 1 . . 1 . . . . . . . . . . . . . Route ------- -11/Scrapyard -10/Materials -10/Mines (discovered 2 exits: *Mat x2) -9/Materials -9/Mines (discovered 4 exits: *Mat x2 / *Exi / *Zio) -9/Exiles (discovered 2 exits: [*Min x2]) -8/Mines (discovered 2 exits: *Mat x2) -8/Materials (discovered 2 exits: *Sto x2) -8/Storage -7/Factory (discovered 3 exits: *Fac / *Low x2) -7/Lower Caves -7/Lower Caves (discovered 2 exits: *Fac / *Zio) -7/Zion (discovered 2 exits: *Dee / *Pro) -7/Deep Caves -6/Proximity Caves -6/Factory (discovered 8 exits: Fac x4 / Low x2 / *Ext x2) -6/Extension (discovered 2 exits: *Fac / *Cet) -6/Cetus (discovered 3 exits: *Fac x2 / *Arc) -6/Archives -6/Hub_04(d) (discovered 3 exits: *Fac x3) -5/Factory (discovered 6 exits: Fac x4 / Upp x2) -5/Waste -5/Factory (discovered 2 exits: *Fac / *Upp) -5/Upper Caves -5/Upper Caves (discovered 2 exits: *Fac / *Zhi) -5/Zhirov -4/Proximity Caves -4/Factory (discovered 3 exits: *Res / *Upp x2) -4/Upper Caves -4/Upper Caves (discovered 2 exits: Res / *War) -4/Warlord -3/Proximity Caves -3/Research (discovered 6 exits: *Res x3 / *Arm / Qua x2) -2/Research (discovered 3 exits: *Acc x2 / Tes) -1/Access -1/Command (discovered 2 exits: Sur x2) History --------- Turn | Location | Event 11 | -11/Scrapyard | Discovered new exit (range 15) 22 | -11/Scrapyard | Entered Materials 43 | -10/Materials | Discovered new exit (range 10) 143 | -10/Materials | Entered Mines 254 | -10/Mines | Discovered new exit (range 15) 258 | -10/Mines | Discovered new exit (range 16) 266 | -10/Mines | Found a damaged Exp. Sensor Array with a note attached 268 | -10/Mines | Found Prototype Device 287 | -10/Mines | Learned Materials terminal intel 309 | -10/Mines | Build established: Mutant 388 | -10/Mines | Entered Materials 388 | -9/Materials | Accompanied by 2 allies 388 | -9/Materials | Evolved 2 slots: Utility x2 389 | -9/Materials | Loaded intel: 11 terminal locations 393 | -9/Materials | Led the pair of lost Derelicts to an unsafe place 442 | -9/Materials | Discovered new exit (range 6) 450 | -9/Materials | Entered Mines 461 | -9/Mines | A Derelict revealed a hidden shortcut to a safe place 468 | -9/Mines | Met a Derelict bent on vengeance 588 | -9/Mines | Discovered new exit (range 4) 590 | -9/Mines | Discovered new exit (range 13) 594 | -9/Mines | Deemed a non-threat by the Exiles lab entrance 594 | -9/Mines | Discovered new exit (range 5) 610 | -9/Mines | Excavation squad dispatched 610 | -9/Mines | A large section of the Mines collapsed 860 | -9/Mines | Excavation squad dispatched 907 | -9/Mines | Entered Exiles 914 | -9/Exiles | Discovered new exit (range 16) 919 | -9/Exiles | Met 8R-AWN 928 | -9/Exiles | Met EX-HEX 951 | -9/Exiles | Met EX-DEC 962 | -9/Exiles | Visited The Gauntlet 987 | -9/Exiles | Learned location of Zion (-7) 994 | -9/Exiles | Met EX-BIN 1004 | -9/Exiles | Aligned with FarCom system 1004 | -9/Exiles | Given EX-Vault access code 1024 | -9/Exiles | Opened EX-Vault 1030 | -9/Exiles | Found Cloak of Protection 1042 | -9/Exiles | Warned to stay clear of 0b10 Research branches 1131 | -9/Exiles | Discovered new exit (range 16) 1138 | -9/Exiles | Left Exiles lab with Cloak of Protection 1138 | -9/Exiles | Entered Mines 1207 | -8/Mines | Discovered new exit (range 13) 1458 | -8/Mines | Discovered new exit (range 9) 1465 | -8/Mines | Entered Materials 1465 | -8/Materials | Evolved 2 slots: Utility x2 1497 | -8/Materials | Repaired Lgt. Assault Rifle 1550 | -8/Materials | Identified Exp. Sensor Array 1566 | -8/Materials | Build established: Scout 1627 | -8/Materials | Discovered new exit (range 20) 1718 | -8/Materials | Discovered new exit (range 9) 1729 | -8/Materials | Entered Storage 1896 | -8/Storage | Build established: Scavenger-Scout 2007 | -8/Storage | Met 01-MTF 2049 | -8/Storage | Lost 4 parts (1p1u2w) 2144 | -8/Storage | Assisted by bots powering up and referring to "LRC-V3" 2277 | -8/Storage | Found 01-MTF's Shockpuncher 2370 | -8/Storage | Discovered new exit (range 16) 2381 | -8/Storage | Identified exit to Factory 2473 | -8/Storage | Entered Factory 2473 | -7/Factory | Accompanied by 12 allies 2473 | -7/Factory | Evolved 2 slots: Utility x2 2478 | -7/Factory | 01-MTF left 2531 | -7/Factory | Repaired Lgt. Assault Rifle 2597 | -7/Factory | Identified exit to Lower Caves 2849 | -7/Factory | Fabricated Exp. Sensor Array (x1) 2977 | -7/Factory | Build established: Scout 2997 | -7/Factory | Garrison activated, responded to threat 3078 | -7/Factory | Garrison activated, responded to threat 3113 | -7/Factory | Discovered new exit (range 19) 3170 | -7/Factory | Identified exit to Factory 3197 | -7/Factory | Repaired Exp. Sensor Array? 3228 | -7/Factory | Entered Lower Caves 3228 | -7/Lower Caves | Accompanied by 1 ally 3387 | -7/Lower Caves | Learned 4 Factory zone layouts 3446 | -7/Lower Caves | Spotted B-75 Beast 3562 | -7/Lower Caves | Discovered new exit (range 16) 3570 | -7/Lower Caves | Identified exit to Lower Caves 3596 | -7/Lower Caves | Encountered a Warlord checkpoint 3642 | -7/Lower Caves | Entered another Lower Caves area 3642 | -7/Lower Caves | Accompanied by 1 ally 3645 | -7/Lower Caves | Discovered exit to Factory (range 16) 3646 | -7/Lower Caves | Encountered a Warlord checkpoint 3987 | -7/Lower Caves | Discovered new exit (range 7) 3990 | -7/Lower Caves | Identified exit to Zion 4182 | -7/Lower Caves | Found Prototype Device 4182 | -7/Lower Caves | Identified Heart of Steel 4275 | -7/Lower Caves | Entered Zion 4275 | -7/Zion | Accompanied by 1 ally 4297 | -7/Zion | Discovered new exit (range 9) 4301 | -7/Zion | Identified exit to Proximity Caves 4315 | -7/Zion | Gained Derelict followers 4343 | -7/Zion | Gained Derelict followers 4373 | -7/Zion | Found Prototype Launcher 4373 | -7/Zion | Identified Gui. Missile Launcher 4394 | -7/Zion | Learned location of Warlord (-4) 4448 | -7/Zion | Gained Derelict followers 4475 | -7/Zion | Rebuked by Imprinter 4505 | -7/Zion | Acquired unknown access codes intercepted by a Zionite 4631 | -7/Zion | Opened final containment barrier to the Deep Caves 4638 | -7/Zion | Discovered new exit (range 5) 4639 | -7/Zion | Saw the warning signs outside the Deep Caves entrance 4715 | -7/Zion | Identified exit to Deep Caves 4716 | -7/Zion | Entered Deep Caves 4716 | -7/Deep Caves | Accompanied by 11 allies 4877 | -7/Deep Caves | Attacked by Z-Imprinter 4898 | -7/Deep Caves | Allies destroyed Z-Imprinter 4933 | -7/Deep Caves | Found Prototype Protection 4933 | -7/Deep Caves | Identified Zio. Weapon Casing 5035 | -7/Deep Caves | Z-Facility disabled 5234 | -7/Deep Caves | Discovered new exit (range 14) 5239 | -7/Deep Caves | Identified exit to Proximity Caves 5557 | -7/Deep Caves | Entered Proximity Caves 5557 | -6/Proximity Caves | Accompanied by 2 allies 5595 | -6/Proximity Caves | Learned Factory terminal intel 5744 | -6/Proximity Caves | Build established: Mutant 5923 | -6/Proximity Caves | Discovered exit to Factory (range 9) 5953 | -6/Proximity Caves | Entered Factory 5953 | -6/Factory | Evolved 2 slots: Utility x2 5955 | -6/Factory | Loaded intel: 21 terminal locations 6003 | -6/Factory | Discovered new exit (range 19) 6085 | -6/Factory | Found Prototype Processor 6085 | -6/Factory | Identified Exp. Targeting Computer 6139 | -6/Factory | Central database locked down 6237 | -6/Factory | Found Prototype Processor 6237 | -6/Factory | Identified Exp. Signal Interpreter 6281 | -6/Factory | Identified exit to Lower Caves 6281 | -6/Factory | Identified exit to Extension 6308 | -6/Factory | Identified exit to Factory 6651 | -6/Factory | Repaired Broken Mni. Fusion Reactor 6819 | -6/Factory | Entered Extension 6925 | -6/Extension | Rescued a captive Derelict 6975 | -6/Extension | Rescued a captive Derelict 6977 | -6/Extension | Rescued a captive Derelict 7091 | -6/Extension | Lost 4 parts (3u1w) 7147 | -6/Extension | Rescued a captive Derelict 7419 | -6/Extension | Disrupted transfer network 7458 | -6/Extension | Spotted B-75 Beast 7483 | -6/Extension | Allies destroyed B-75 Beast 7485 | -6/Extension | Spotted B-75 Beast 7496 | -6/Extension | Allies destroyed B-75 Beast 7519 | -6/Extension | First assault squad dispatched 7629 | -6/Extension | Door terminal overloaded 7629 | -6/Extension | Rescued a captive Derelict 7630 | -6/Extension | Rescued a captive Derelict 7850 | -6/Extension | Rescued a captive Derelict 7866 | -6/Extension | Rescued A7 7884 | -6/Extension | Build established: Commander-Assassin 7949 | -6/Extension | Rescued a captive Derelict 7975 | -6/Extension | Discovered exit to Factory (range 10) 7976 | -6/Extension | Discovered new exit (range 6) 8027 | -6/Extension | Identified exit to Cetus 8778 | -6/Extension | Entered Cetus 8778 | -6/Cetus | Accompanied by 16 allies 8783 | -6/Cetus | Acquired a Cetus Manufacturing Module code from A7 8796 | -6/Cetus | Spotted Cetus Guard 8796 | -6/Cetus | Spotted Cetus Guard 8797 | -6/Cetus | Spotted Cetus Guard 8797 | -6/Cetus | Spotted Cetus Guard 8812 | -6/Cetus | Allies destroyed Cetus Guard 8814 | -6/Cetus | Destroyed Cetus Guard 8816 | -6/Cetus | Allies destroyed Cetus Guard 8822 | -6/Cetus | Destroyed Cetus Guard 8871 | -6/Cetus | Started Cetus Manufacturing Module 8878 | -6/Cetus | Escorted A7 to Cetus Mainframe 8896 | -6/Cetus | Manufactured an Enhanced Grunt 8905 | -6/Cetus | Found a strange terminal 8916 | -6/Cetus | Discovered new exit (range 22) 8921 | -6/Cetus | Manufactured an Enhanced Grunt 8946 | -6/Cetus | Manufactured an Enhanced Grunt 8971 | -6/Cetus | Manufactured an Enhanced Grunt 8980 | -6/Cetus | Discovered exit to Factory (range 56) 8995 | -6/Cetus | Spotted Cetus Guard 8995 | -6/Cetus | Spotted Cetus Guard 8996 | -6/Cetus | Manufactured an Enhanced Grunt 8996 | -6/Cetus | Spotted Cetus Guard 8996 | -6/Cetus | Spotted Cetus Guard 8998 | -6/Cetus | Discovered exit to Factory (range 21) 9002 | -6/Cetus | Allies destroyed Cetus Guard 9009 | -6/Cetus | Destroyed Cetus Guard 9010 | -6/Cetus | Allies destroyed Cetus Guard 9013 | -6/Cetus | Allies destroyed Cetus Guard 9018 | -6/Cetus | Met Revision 17 9050 | -6/Cetus | Identified exit to Archives 9076 | -6/Cetus | Entered Archives 9076 | -6/Archives | Accompanied by 16 allies 9081 | -6/Archives | Received a hacking code to weaken MAIN.C 9088 | -6/Archives | Met Zhirov 9088 | -6/Archives | Discovered new exit (range 22) 9094 | -6/Archives | Reinforcements dispatched to Archives 9108 | -6/Archives | Identified exit to Hub_04(d) 9139 | -6/Archives | Reinforcements dispatched to Archives 9142 | -6/Archives | Entered Hub_04(d) 9142 | -6/Hub_04(d) | Accompanied by 10 allies 9142 | -6/Hub_04(d) | Spotted B-75 Beast 9154 | -6/Hub_04(d) | Allies destroyed B-75 Beast 9160 | -6/Hub_04(d) | Garrison activated, responded to threat 9299 | -6/Hub_04(d) | Discovered exit to Factory (range 5) 9443 | -6/Hub_04(d) | Discovered exit to Factory (range 4) 9492 | -6/Hub_04(d) | First assault squad dispatched 9508 | -6/Hub_04(d) | Build established: Scavenger-Mutant 9527 | -6/Hub_04(d) | Discovered exit to Factory (range 47) 9555 | -6/Hub_04(d) | Core integrity fell below 50% 9570 | -6/Hub_04(d) | Network Hub disabled 9589 | -6/Hub_04(d) | Spotted Lightning 9590 | -6/Hub_04(d) | Spotted Lightning 9591 | -6/Hub_04(d) | Spotted Lightning 9591 | -6/Hub_04(d) | Network Hub disabled 9592 | -6/Hub_04(d) | Spotted Lightning 9593 | -6/Hub_04(d) | Spotted Lightning 9594 | -6/Hub_04(d) | Spotted Lightning 9595 | -6/Hub_04(d) | Spotted Lightning 9595 | -6/Hub_04(d) | Spotted Lightning 9598 | -6/Hub_04(d) | Network Hub disabled 9599 | -6/Hub_04(d) | Spotted Lightning 9600 | -6/Hub_04(d) | Spotted Lightning 9601 | -6/Hub_04(d) | Spotted Lightning 9601 | -6/Hub_04(d) | Entered Factory 9601 | -5/Factory | Evolved 2 slots: Utility x2 9901 | -5/Factory | First assault squad dispatched 9924 | -5/Factory | Build established: Hacker-Assassin 9972 | -5/Factory | Identified exit to Factory 9972 | -5/Factory | Identified exit to Upper Caves 10022 | -5/Factory | Sucked down chute 10022 | -5/Factory | Entered Waste 10029 | -5/Waste | Spotted C-40 Crusher 10034 | -5/Waste | Found Unknown Device 10034 | -5/Waste | Identified Adv. Force Booster 10036 | -5/Waste | Spotted C-40 Crusher 10043 | -5/Waste | Warlord forces began an assault 10048 | -5/Waste | Allies destroyed C-40 Crusher 10052 | -5/Waste | Allies destroyed C-40 Crusher 10057 | -5/Waste | Spotted C-40 Crusher 10063 | -5/Waste | Allies destroyed C-40 Crusher 10068 | -5/Waste | Spotted C-40 Crusher 10073 | -5/Waste | Allies destroyed C-40 Crusher 10084 | -5/Waste | Spotted C-40 Crusher 10095 | -5/Waste | Allies destroyed C-40 Crusher 10097 | -5/Waste | Spotted C-40 Crusher 10100 | -5/Waste | Discovered new exit (range 15) 10102 | -5/Waste | Allies destroyed C-40 Crusher 10340 | -5/Waste | Identified exit to Factory 10367 | -5/Waste | Entered Factory 10367 | -5/Factory | Accompanied by 14 allies 10422 | -5/Factory | Found Prototype Launcher 10422 | -5/Factory | Identified Mni. Smartbomb Launcher 10743 | -5/Factory | Discovered exit to Factory (range 22) 10860 | -5/Factory | Repaired Mni. Fusion Reactor 10900 | -5/Factory | Repaired Exp. Sensor Array 10954 | -5/Factory | Repaired Exp. Power Amplifier 10967 | -5/Factory | First assault squad dispatched 11008 | -5/Factory | Repaired Centrium Medium Armor Plating 11117 | -5/Factory | Central database locked down 11216 | -5/Factory | Fabricated Gravity Neutralizing Apparatus (x1) 11254 | -5/Factory | Fabricated Gravity Neutralizing Apparatus (x1) 11292 | -5/Factory | Fabricated Gravity Neutralizing Apparatus (x1) 11463 | -5/Factory | Fabricated Fusion Compressor (x2) 11475 | -5/Factory | Discovered exit to Upper Caves (range 8) 11493 | -5/Factory | Entered Upper Caves 11493 | -5/Upper Caves | Accompanied by 2 allies 11777 | -5/Upper Caves | Build established: Hacker-Mutant 11785 | -5/Upper Caves | Learned location of 1 exit from Proximity Caves 11798 | -5/Upper Caves | Learned Factory emergency access door positions 11858 | -5/Upper Caves | Discovered new exit (range 13) 11864 | -5/Upper Caves | Identified exit to Upper Caves 12052 | -5/Upper Caves | Entered another Upper Caves area 12072 | -5/Upper Caves | Discovered exit to Factory (range 10) 12352 | -5/Upper Caves | Discovered new exit (range 15) 12357 | -5/Upper Caves | Identified exit to Zhirov 12406 | -5/Upper Caves | Learned Factory terminal intel 13143 | -5/Upper Caves | Entered Zhirov 13143 | -5/Zhirov | Discovered new exit (range 3) 13144 | -5/Zhirov | Identified exit to Proximity Caves 13162 | -5/Zhirov | Learned location of Quarantine (-3) 13162 | -5/Zhirov | Learned location of Testing (-2) 13162 | -5/Zhirov | Learned location of Command (-1) 13181 | -5/Zhirov | Found Alien Artifact 13181 | -5/Zhirov | Identified Integrated Dissipator 13181 | -5/Zhirov | Installed Integrated Dissipator, increased core heat dissipation (+2%) 13191 | -5/Zhirov | Found Alien Artifact 13274 | -5/Zhirov | Entered Proximity Caves 13289 | -4/Proximity Caves | Learned 4 Research zone layouts 13366 | -4/Proximity Caves | Acquired the password to a Derelict Tinkerer's latest research 13588 | -4/Proximity Caves | Learned Research stockpile data 13780 | -4/Proximity Caves | Entered Factory 13780 | -4/Factory | Evolved 2 slots: Utility x2 13782 | -4/Factory | Loaded intel: 20 terminal locations 13810 | -4/Factory | Identified exit to Upper Caves 13822 | -4/Factory | Spotted B-86 Titan 14078 | -4/Factory | Discovered new exit (range 15) 14078 | -4/Factory | Central database locked down 14104 | -4/Factory | Identified exit to Research 14175 | -4/Factory | Build established: Hacker-Scout 14288 | -4/Factory | Repaired Greatsword 14308 | -4/Factory | Fabricated Inertial Stasis Machine (x1) 14401 | -4/Factory | Fabricated Inertial Stasis Machine (x1) 14494 | -4/Factory | Fabricated Inertial Stasis Machine (x1) 14536 | -4/Factory | Fabricated Powered Armor? 14720 | -4/Factory | Entered Upper Caves 14720 | -4/Upper Caves | Accompanied by 2 allies 14991 | -4/Upper Caves | Build established: Hacker-Mutant 15087 | -4/Upper Caves | Discovered new exit (range 15) 15111 | -4/Upper Caves | Learned location of 1 exit from Upper Caves 15114 | -4/Upper Caves | Identified exit to Upper Caves 15298 | -4/Upper Caves | Entered another Upper Caves area 15304 | -4/Upper Caves | Learned Research terminal intel 15795 | -4/Upper Caves | Discovered new exit (range 3) 15796 | -4/Upper Caves | Identified exit to Warlord 15807 | -4/Upper Caves | Entered Warlord 15824 | -4/Warlord | System corruption cleaned by Quarantine Array 16027 | -4/Warlord | Learned Quarantine stockpile data 16028 | -4/Warlord | Learned Factory fabricator intel 16028 | -4/Warlord | Learned Factory garrison access intel 16120 | -4/Warlord | Found Prototype Device 16120 | -4/Warlord | Identified System Purifier 16135 | -4/Warlord | Met Warlord 16160 | -4/Warlord | Warlord's base attacked by MAIN.C 16192 | -4/Warlord | Found Prototype Energy Cannon 16192 | -4/Warlord | Identified Vortex Driver 16195 | -4/Warlord | Found Prototype Piercing Weapon 16195 | -4/Warlord | Identified Vortex Lance 16200 | -4/Warlord | Found Prototype Launcher 16200 | -4/Warlord | Identified Vortex Catalyst Activator 16327 | -4/Warlord | Opened side exit 16340 | -4/Warlord | Discovered new exit (range 10) 16345 | -4/Warlord | Identified exit to Proximity Caves 16394 | -4/Warlord | Entered Proximity Caves 16394 | -3/Proximity Caves | Accompanied by 5 allies 16470 | -3/Proximity Caves | Attracted the attention of an 0b10 checkpoint 16752 | -3/Proximity Caves | Spotted B-86 Titan 16932 | -3/Proximity Caves | Discovered exit to Research (range 11) 17023 | -3/Proximity Caves | Entered Research 17023 | -3/Research | Evolved 2 slots: Utility x2 17024 | -3/Research | Identified exit to Quarantine 17027 | -3/Research | Loaded intel: 18 terminal locations 17126 | -3/Research | Discovered new exit (range 4) 17127 | -3/Research | Identified exit to Armory 17203 | -3/Research | Fabricated Imp. Fusion Compressor? 17223 | -3/Research | Revision forces began assault on 0b10 17263 | -3/Research | Fabricated Exp. Terrain Scanner (x1) 17272 | -3/Research | Met up with Revision 17++ 17458 | -3/Research | Identified exit to Research 17528 | -3/Research | Spotted B-86 Titan 17569 | -3/Research | Spotted B-86 Titan 17575 | -3/Research | Build established: Hacker-Scout 17723 | -3/Research | Research terminal network offline 17730 | -3/Research | Local fabrication network quarantined 17771 | -3/Research | Entered another Research area 17771 | -2/Research | Warlord forces began assault on 0b10 17771 | -2/Research | Evolved 2 slots: Utility x2 17772 | -2/Research | Identified exit to Testing 17786 | -2/Research | Central database locked down 17867 | -2/Research | Fabricated Exp. Armor Integrity Analyzer? 17873 | -2/Research | Spotted B-90 Cyclops 17881 | -2/Research | Research machine network offline 17939 | -2/Research | Met up with Warlord 17987 | -2/Research | Found Prototype Device 17987 | -2/Research | Identified Exp. Force Field 18108 | -2/Research | Discovered new exit (range 9) 18110 | -2/Research | Build established: Wizard-Scout 18112 | -2/Research | Identified exit to Access 18179 | -2/Research | Found Prototype Launcher 18188 | -2/Research | Identified Point Singularity Launcher 18189 | -2/Research | Found Prototype Device 18200 | -2/Research | Identified Exp. Thermal Shield 18208 | -2/Research | Borebot progress halted 18209 | -2/Research | Found Prototype Processor 18219 | -2/Research | Identified Spectral Analyzer 18364 | -2/Research | Spotted Striker 18365 | -2/Research | Spotted Striker 18388 | -2/Research | Spotted Executioner 18392 | -2/Research | Spotted Striker 18567 | -2/Research | Spotted B-90 Cyclops 18590 | -2/Research | Borebot progress halted 18931 | -2/Research | Found Imp. Powered Armor 18950 | -2/Research | Discovered exit to Access (range 12) 19143 | -2/Research | Spotted Executioner 19144 | -2/Research | Spotted Striker 19367 | -2/Research | Local fabrication network quarantined 19374 | -2/Research | Spotted Executioner 19407 | -2/Research | Build established: Hacker-Scout 19521 | -2/Research | Spotted Striker 19521 | -2/Research | Spotted Striker 19539 | -2/Research | Found Prototype Processor 19542 | -2/Research | Identified Exp. Core Analyzer 19544 | -2/Research | Spotted Executioner 19548 | -2/Research | Entered Access 19548 | -1/Access | Evolved 2 slots: Utility x1, Weapon x1 19594 | -1/Access | Garrison activated, responded to threat 19844 | -1/Access | Fabricated Femtoactuators? 19982 | -1/Access | Identified exit to Command 20094 | -1/Access | Entered Command 20094 | -1/Command | Accompanied by 1 ally 20183 | -1/Command | Spotted B-99 Colossus 20280 | -1/Command | Lost 3 parts (1p2u) 20315 | -1/Command | Identified exit to Surface 20357 | -1/Command | Spotted B-99 Colossus 20408 | -1/Command | Build established: Hacker-Mutant 20505 | -1/Command | Repaired Broken Imp. Fusion Compressor 20544 | -1/Command | Disengaged cave seal 20630 | -1/Command | Disengaged cave seal 20688 | -1/Command | Spotted Combat Programmer 20694 | -1/Command | Destroyed M Guard 20696 | -1/Command | Spotted M Guard 20732 | -1/Command | Spotted Combat Programmer 20734 | -1/Command | Spotted Striker 20735 | -1/Command | Spotted Alpha 7 20741 | -1/Command | Spotted Alpha 7 20741 | -1/Command | Spotted Executioner 20742 | -1/Command | Spotted Executioner 20742 | -1/Command | Spotted Executioner 20742 | -1/Command | Spotted B-99 Colossus 20742 | -1/Command | Spotted Striker 20742 | -1/Command | Spotted Executioner 20742 | -1/Command | Spotted B-99 Colossus 20745 | -1/Command | System corruption reached 10% 20746 | -1/Command | Core integrity fell below 50% 20749 | -1/Command | Core integrity fell below 20% 20752 | -1/Command | Destroyed by Executioner with Helical Railgun Last Messages --------------- 20748_ Adv. Hacking Suite destroyed. 20748_ Triggered Stasis Trap. 20748_ A bubble of rippling energy engulfs the area. 20748_ Field strength at 94. 20749_ Field strength at 88. 20749_ Slug penetrates Wall. 20749_ Slug penetrates Reinforced Barrier. 20749_ Slug penetrates Wall. 20749_ Slug penetrates Reinforced Barrier. 20749_ Slug penetrates Executioner. 20750_ Field strength at 73. 20750_ Slug penetrates Striker. 20751_ Knocked back. 20751_ Penetrated by Slug. 20751_ Slug penetrates Reinforced Barrier. 20751_ Slug penetrates Executioner. 20751_ Slug penetrates Reinforced Barrier. 20751_ Slug penetrates Wall. 20751_ Penetrated by Slug. 20751_ Slug penetrates Reinforced Barrier. Map ----- +----------------------------------------------------+ | | | | | | | ?????????????????????????????????????????????????? | | ?????????????????????????????????????????????????? | | ?????????????????????????????????????????????????? | | ?????????????????????????????????????????????????? | | ?????????????????????????????????????????????????? | | ?????????????????????????????????????????????????? | | ?????????????????????????????????????????????????? | | ?????????????????????????????????????????????????? | | ?????????????????????????????????????????????????? | | ?????????????????????????????????????????????????? | | ?????????????????????????????????????????????????? | | ?????????????????????????????????????????????????? | | ?????????????????????????????????????????????????? | | ?????????????????????????????????????????????????? | | ????????? ?? ???????????????????????????????????? | | ???????? #?????????????????????????????????? | | ???? ? #?????????????????????????????????? | | ??" ? #?????????????????????????????????? | | ?? ?" #?????????????????????????????????? | | ?"" """" ###???????????????????????????????? | | "" " " ## ###?#########?? ???????????? | | " ### ###;;#;; # ????????? | | ##; ;@; ????????? | | # ;^ ]^ BB "??????????????? | | ? E!^ ^ BB "??????????????? | | ??? EKE "??